bitfinex/quotes_SOLUSD_20240925
["timestamp","ask_amount","ask_price","bid_price","bid_amount"]
[1727292864446,0.2451286,150.62,150.61,1.32783208]
[1727292868769,0.2451286,150.66,150.61,23.16423208]
[1727292868929,0.2451286,150.66,150.65,13.61300324]
[1727292869835,0.2451286,150.66,150.65,57.38988724]
[1727292870036,0.2451286,150.66,150.65,73.90528724]
[1727292871333,6.4646,150.75,150.65,73.90528724]
[1727292871552,0.352147,150.76,150.7,13.61300324]
[1727292872755,0.352147,150.76,150.75,13.61300324]
[1727292874832,0.352147,150.76,150.73,13.61300324]
[1727292875159,0.352147,150.76,150.71,13.61300324]
[1727292875762,0.352147,150.76,150.75,13.61300324]
[1727292876933,0.352147,150.76,150.71,43.776884]
[1727292877134,0.352147,150.76,150.74,13.61300324]
[1727292877934,0.352147,150.76,150.71,20.0]
[1727292878134,0.352147,150.76,150.72,13.61300324]
[1727292879858,0.352147,150.76,150.74,13.61300324]
[1727292880062,0.352147,150.76,150.75,1.32646173]
[1727292880264,0.352147,150.76,150.74,13.61300324]
[1727292880433,0.352147,150.76,150.72,13.61300324]
[1727292881057,0.352147,150.76,150.74,13.61300324]
[1727292881451,0.352147,150.76,150.75,1.32655916]
[1727292884856,0.352147,150.76,150.74,21.15497245]
[1727292885864,0.352147,150.76,150.75,1.32634644]
[1727292886046,0.352147,150.76,150.74,21.15497245]
[1727292887658,0.352147,150.76,150.73,20.0]
[1727292888555,0.352147,150.76,150.74,22.48141284]
[1727292888851,0.352147,150.76,150.75,1.32636195]
[1727292890245,0.352147,150.76,150.74,21.15497245]
[1727292890670,0.352147,150.76,150.75,1.32639733]
[1727292890886,0.352147,150.76,150.75,1.32637031]
[1727292892366,0.352147,150.76,150.74,21.15497245]
[1727292893446,0.352147,150.76,150.75,1.32626946]
[1727292893941,0.352147,150.76,150.74,21.15497245]
[1727292894667,0.352147,150.76,150.75,1.32623292]
[1727292894875,0.352147,150.76,150.74,21.15497245]
[1727292896178,0.352147,150.76,150.75,1.32629477]
[1727292900179,0.352147,150.76,150.75,17.28169477]
[1727292900561,0.352147,150.76,150.75,15.9554]
[1727292901152,0.352147,150.76,150.75,17.2816304]
[1727292901357,0.352147,150.76,150.75,41.0585144]
[1727292903083,0.352147,150.76,150.75,39.732284]
[1727292903383,0.352147,150.76,150.75,15.9554]
[1727292903559,0.352147,150.76,150.75,17.28167192]
[1727292906368,0.352147,150.76,150.75,30.81825336]
[1727292906566,0.352147,150.76,150.75,54.59513736]
[1727292907286,0.352147,150.76,150.75,39.732284]
[1727292907464,0.352147,150.76,150.75,53.26886544]
[1727292907663,0.352147,150.76,150.75,54.59505638]
[1727292908286,0.352147,150.76,150.75,53.26886544]
[1727292908458,0.352147,150.76,150.75,54.59505649]
[1727292908787,0.3181899,150.8,150.76,23.776884]
[1727292908961,0.3181899,150.8,150.79,13.53658144]
[1727292909165,0.3181899,150.8,150.79,14.86252112]
[1727292909367,0.3181899,150.8,150.79,13.53658144]
[1727292911679,0.3181899,150.8,150.77,13.53658144]
[1727292913106,0.3181899,150.8,150.78,1.32611877]
[1727292915075,0.3181899,150.8,150.77,13.53658144]
[1727292915893,0.3181899,150.8,150.71,20.0]
[1727292916091,0.3181899,150.8,150.75,13.53658144]
[1727292916603,0.3181899,150.8,150.76,13.53658144]
[1727292916798,0.3181899,150.8,150.76,14.86280746]
[1727292917784,0.3181899,150.8,150.77,1.14590034]
[1727292918397,0.3181899,150.8,150.76,13.53658144]
[1727292918904,0.3181899,150.8,150.77,1.32621552]
[1727292919709,0.3181899,150.8,150.76,13.53658144]
[1727292920093,0.3181899,150.8,150.75,13.53658144]
[1727292920406,0.3181899,150.8,150.72,23.776884]
[1727292920621,0.3181899,150.8,150.74,13.53658144]
[1727292923129,0.3181899,150.8,150.76,13.53658144]
[1727292923411,0.3181899,150.8,150.78,13.53658144]
[1727292926416,0.3181899,150.8,150.76,13.53658144]
[1727292927515,1.82588692,150.8,150.74,13.53658144]
[1727292927700,3.1309,150.79,150.67,23.84667027]
[1727292927909,6.6326,150.77,150.67,16.1517]
[1727292928105,1.50769702,150.76,150.67,29.68828144]
[1727292929335,1.50769702,150.76,150.68,20.0]
[1727292929497,6.6336,150.75,150.67,13.53658144]
[1727292929829,1.50769702,150.74,150.64,0.2451286]
[1727292929996,1.50769702,150.74,150.64,13.78171004]
[1727292930197,8.14159702,150.74,150.64,13.78171004]
[1727292930407,6.6336,150.75,150.66,21.18647934]
[1727292930638,6.6336,150.75,150.67,1.32702996]
[1727292930820,20.0,150.76,150.66,21.18647934]
[1727292930821,20.0,150.76,150.68,1.32698254]
[1727292931420,1.50769702,150.75,150.66,21.18647934]
[1727292931610,8.14119702,150.75,150.65,43.776884]
[1727292933494,6.6339,150.74,150.65,20.0]
[1727292933700,11.27309702,150.73,150.64,20.2451286]
[1727292934735,1.50769702,150.72,150.64,20.2451286]
[1727292935218,3.1309,150.73,150.64,20.2451286]
[1727292935623,3.1309,150.73,150.65,23.776884]
[1727292935921,3.1309,150.73,150.66,22.51348953]
[1727292936340,20.0,150.76,150.67,23.776884]
[1727292936634,1.50769702,150.75,150.67,23.776884]
[1727292940735,1.50769702,150.75,150.66,21.18647934]
[1727292942934,6.6339,150.74,150.64,20.2451286]
[1727292943143,1.50769702,150.73,150.64,20.2451286]
[1727292943843,20.0,150.76,150.64,41.43160794]
[1727292944225,1.50769702,150.75,150.66,21.18647934]
[1727292945349,8.14119702,150.75,150.65,23.776884]
[1727292945526,23.32112959,150.77,150.66,22.51341262]
[1727292945736,23.32112959,150.77,150.66,21.18647934]
[1727292947250,8.14079702,150.76,150.66,21.18647934]
[1727292952247,6.0178,150.73,150.64,0.2451286]
[1727292952450,6.6355,150.71,150.64,0.2451286]
[1727292952629,8.14349702,150.7,150.64,0.2451286]
[1727292953650,1.50769702,150.69,150.64,0.2451286]
[1727292953951,6.6353,150.71,150.64,0.2451286]
[1727292955435,1.50769702,150.7,150.64,0.2451286]
[1727292956149,8.14349702,150.7,150.64,0.2451286]
[1727292956357,1.50769702,150.69,150.64,0.2451286]
[1727292956651,16.09516817,150.73,150.64,0.2451286]
[1727292956832,30.411784,150.72,150.64,1.57251845]
[1727292957351,8.14299702,150.71,150.64,0.2451286]
[1727292957843,6.6358,150.7,150.64,0.2451286]
[1727292958048,1.50769702,150.69,150.64,0.2451286]
[1727292958351,3.1309,150.67,150.64,0.2451286]
[1727292958552,4.63859702,150.67,150.64,0.2451286]
[1727292959051,3.1309,150.67,150.64,0.2451286]
[1727292963155,6.1179,150.68,150.64,0.2451286]
[1727292963641,1.50769702,150.67,150.64,0.2451286]
[1727292964859,6.1179,150.68,150.64,0.2451286]
[1727292969361,3.1309,150.71,150.64,0.2451286]
[1727292969558,3.1309,150.71,150.65,21.18647934]
[1727292969749,6.0111,150.72,150.65,22.51371675]
[1727292970340,3.1309,150.75,150.66,20.0]
[1727292970969,8.14189702,150.74,150.64,0.2451286]
[1727292971145,6.6344,150.73,150.64,44.0220126]
[1727292971334,1.50769702,150.72,150.64,44.0220126]
[1727292972353,1.50769702,150.73,150.64,44.0220126]
[1727292972560,6.634,150.74,150.64,44.0220126]
[1727292973672,1.50769702,150.73,150.64,44.0220126]
[1727292974377,1.50769702,150.74,150.65,21.18647934]
[1727292977867,1.50769702,150.74,150.64,20.2451286]
[1727292978054,6.6349,150.72,150.64,0.2451286]
[1727292978263,1.50769702,150.71,150.64,20.2451286]
[1727292979268,1.50769702,150.72,150.64,20.2451286]
[1727292980147,8.14279702,150.72,150.64,0.2451286]
[1727292980371,3.1309,150.7,150.64,0.2451286]
[1727292980689,1.50769702,150.69,150.64,0.2451286]
[1727292984351,6.6364,150.68,150.64,0.2451286]
[1727292985072,1.50769702,150.67,150.64,0.2451286]
[1727292985571,8.14479702,150.67,150.64,0.2451286]
[1727292986883,1.50769702,150.67,150.64,0.2451286]
[1727292994985,8.14479702,150.67,150.64,0.2451286]
[1727292999466,6.6379,150.65,150.64,0.2451286]
[1727292999668,8.14559702,150.65,150.64,0.2451286]
[1727293000888,31.92248102,150.65,150.64,0.2451286]
[1727293001092,55.05338102,150.65,150.64,0.2451286]
[1727293005790,55.05338102,150.65,150.59,0.2451286]
[1727293005791,6.0402,150.64,150.59,0.2451286]
[1727293005999,6.6397,150.61,150.59,0.2451286]
[1727293006169,1.50769702,150.6,150.59,0.2451286]
[1727293007495,6.6397,150.61,150.59,0.2451286]
[1727293009597,1.50769702,150.6,150.59,0.2451286]
[1727293010502,6.0402,150.64,150.59,0.2451286]
[1727293010503,23.776884,150.62,150.59,0.2451286]
[1727293011403,30.416084,150.62,150.59,0.2451286]
[1727293015008,23.776884,150.6,150.59,0.2451286]
[1727293015308,30.416984,150.6,150.59,0.2451286]
[1727293015986,6.6398,150.61,150.59,0.2451286]
[1727293016190,6.6395,150.62,150.59,0.2451286]
[1727293018404,6.6401,150.6,150.59,0.2451286]
[1727293018617,30.416984,150.6,150.59,0.2451286]
[1727293018788,6.64,150.61,150.59,0.2451286]
[1727293019809,1.50769702,150.6,150.59,0.2451286]
[1727293020812,8.14779702,150.6,150.59,0.2451286]
[1727293021110,30.416984,150.6,150.59,0.2451286]
[1727293023198,23.776884,150.6,150.59,0.2451286]
[1727293023502,6.6392,150.62,150.59,0.2451286]
[1727293023907,26.94379212,150.63,150.59,0.2451286]
[1727293023908,1.50769702,150.61,150.59,0.2451286]
[1727293024203,8.14779702,150.6,150.59,0.2451286]
[1727293024593,31.92468102,150.6,150.59,0.2451286]
[1727293025308,30.416984,150.6,150.59,0.2451286]
[1727293027911,23.776884,150.6,150.59,0.2451286]
[1727293028110,6.93246777,150.61,150.59,0.2451286]
[1727293028500,13.57216777,150.61,150.59,0.2451286]
[1727293029308,15.07986479,150.61,150.59,0.2451286]
[1727293032803,6.6401,150.6,150.59,0.2451286]
[1727293034016,30.416984,150.6,150.59,0.2451286]
[1727293034216,31.92468102,150.6,150.59,0.2451286]
[1727293035741,30.416984,150.6,150.59,0.2451286]
[1727293036405,31.92468102,150.6,150.59,0.2451286]
[1727293037405,30.416984,150.6,150.59,0.2451286]
[1727293038004,31.92468102,150.6,150.59,0.2451286]
[1727293039823,30.416984,150.6,150.59,0.2451286]
[1727293040024,31.92468102,150.6,150.59,0.2451286]
[1727293040900,30.416984,150.6,150.59,0.2451286]
[1727293044221,31.92468102,150.6,150.59,0.2451286]
[1727293046030,30.416984,150.6,150.59,0.2451286]
[1727293051920,30.416984,150.6,150.59,0.6435286]
[1727293052238,13.57216777,150.61,150.59,0.6435286]
[1727293052930,6.93246777,150.61,150.59,0.6435286]
[1727293053108,6.93246777,150.61,150.59,16.5431286]
[1727293053308,6.6379,150.65,150.59,16.5431286]
[1727293053531,1.50769702,150.64,150.59,16.5431286]
[1727293054834,1.50769702,150.63,150.59,16.5431286]
[1727293055009,8.14559702,150.65,150.59,16.5431286]
[1727293055215,6.6385,150.64,150.59,16.5431286]
[1727293055415,1.50769702,150.63,150.59,16.5431286]
[1727293056339,8.14659702,150.63,150.59,16.5431286]
[1727293056510,1.50769702,150.62,150.59,16.5431286]
[1727293057430,20.0,150.66,150.59,16.5431286]
[1727293057431,1.50769702,150.61,150.59,16.5431286]
[1727293057644,6.6389,150.63,150.59,16.5431286]
[1727293057824,1.50769702,150.62,150.59,16.5431286]
[1727293058336,8.14699702,150.62,150.59,16.5431286]
[1727293058536,6.6399,150.61,150.59,16.5431286]
[1727293058727,1.50769702,150.6,150.59,16.5431286]
[1727293058921,8.14779702,150.6,150.59,16.5431286]
[1727293059246,6.6399,150.61,150.59,0.6435286]
[1727293059541,1.50769702,150.6,150.59,0.6435286]
[1727293060242,6.6393,150.62,150.59,0.6435286]
[1727293060949,30.415684,150.63,150.59,0.6435286]
[1727293061241,23.776884,150.63,150.59,0.6435286]
[1727293061428,30.415684,150.63,150.59,0.6435286]
[1727293061626,1.50769702,150.62,150.59,0.6435286]
[1727293062011,8.14689702,150.62,150.59,0.6435286]
[1727293062348,1.50769702,150.62,150.59,0.6435286]
[1727293062640,6.6393,150.62,150.59,0.6435286]
[1727293064135,30.415784,150.63,150.59,0.6435286]
[1727293067747,13.55751141,150.64,150.6,16.3203]
[1727293067928,8.14669702,150.63,150.6,16.3203]
[1727293068129,6.639,150.63,150.6,16.3203]
[1727293070230,6.91959208,150.65,150.6,16.3203]
[1727293070231,26.6384,150.64,150.6,16.3203]
[1727293070424,13.55759208,150.65,150.6,16.3203]
[1727293070625,6.638,150.65,150.6,16.3203]
[1727293070823,16.59,150.7,150.6,16.3203]
[1727293070824,20.0,150.66,150.6,16.3203]
[1727293071145,6.6382,150.65,150.6,16.3203]
[1727293074023,6.6382,150.65,150.6,16.7187]
[1727293080642,6.6382,150.65,150.61,6.3766]
[1727293085253,20.0,150.66,150.61,6.3766]
[1727293085438,26.6376,150.66,150.61,6.3766]
[1727293086553,1.50769702,150.65,150.61,6.3766]
[1727293087054,6.6386,150.64,150.61,6.3766]
[1727293087347,8.14659702,150.63,150.61,6.3766]
[1727293087555,6.6392,150.62,150.6,16.3203]
[1727293087728,36.5938,150.66,150.59,0.2451286]
[1727293087729,8.14759702,150.61,150.59,0.2451286]
[1727293087926,1.50769702,150.6,150.59,0.2451286]
[1727293089461,8.14779702,150.6,150.59,0.2451286]
[1727293089752,6.6401,150.6,150.59,0.2451286]
[1727293090253,6.6397,150.61,150.59,0.2451286]
[1727293094926,30.415884,150.63,150.59,0.2451286]
[1727293095532,20.0,150.63,150.59,0.2451286]
[1727293096035,6.638,150.65,150.6,15.803]
[1727293096449,20.0,150.65,150.6,15.803]
[1727293097636,1.50769702,150.64,150.6,15.803]
[1727293097952,6.6379,150.65,150.6,15.803]
[1727293098151,6.6389,150.63,150.6,15.803]
[1727293098333,1.50769702,150.62,150.6,15.803]
[1727293099259,1.50769702,150.64,150.6,15.803]
[1727293099463,6.6388,150.63,150.6,15.803]
[1727293099639,1.50769702,150.62,150.6,15.803]
[1727293100553,6.6384,150.64,150.6,15.803]
[1727293100554,1.50769702,150.63,150.6,15.803]
[1727293101659,6.6384,150.64,150.6,15.803]
[1727293101869,1.50769702,150.63,150.6,15.803]
[1727293102442,6.6384,150.64,150.6,15.803]
[1727293105244,23.776884,150.65,150.6,15.803]
[1727293105451,6.6379,150.65,150.6,15.803]
[1727293106139,20.0,150.66,150.6,15.803]
[1727293106338,26.6375,150.66,150.6,15.803]
[1727293107651,20.0,150.66,150.6,15.803]
[1727293107949,6.6379,150.65,150.6,15.803]
[1727293108259,8.14559702,150.65,150.6,15.803]
[1727293109065,6.6379,150.65,150.6,15.803]
[1727293110341,1.50769702,150.64,150.6,15.803]
[1727293110550,6.6379,150.65,150.6,15.803]
[1727293110551,1.50769702,150.63,150.6,15.803]
[1727293110777,6.6379,150.65,150.6,15.803]
[1727293112377,20.0,150.66,150.6,15.803]
[1727293112865,6.6371,150.67,150.6,29.37290659]
[1727293113164,13.55351772,150.69,150.62,16.5742]
[1727293113370,6.6361,150.69,150.62,16.5742]
[1727293113574,6.6361,150.69,150.62,30.14410659]
[1727293114775,6.6358,150.7,150.64,16.5742]
[1727293117573,1.50769702,150.69,150.64,16.5742]
[1727293118576,6.6366,150.68,150.64,16.5742]
[1727293118769,1.50769702,150.67,150.64,16.5742]
[1727293120073,1.50769702,150.67,150.64,16.9726]
[1727293120873,6.6366,150.68,150.64,16.9726]
[1727293121058,1.50769702,150.67,150.64,16.9726]
[1727293121461,6.6366,150.68,150.64,16.9726]
[1727293122181,6.6362,150.69,150.64,16.9726]
[1727293122758,1.50769702,150.68,150.64,16.9726]
[1727293123290,8.14419702,150.68,150.64,16.9726]
[1727293123473,1.50769702,150.68,150.64,16.9726]
[1727293123667,8.14439702,150.68,150.64,16.9726]
[1727293124069,6.6373,150.67,150.64,16.9726]
[1727293124263,20.0,150.7,150.64,16.9726]
[1727293124264,8.14519702,150.66,150.64,16.9726]
[1727293124586,1.50769702,150.65,150.64,16.9726]
[1727293127499,6.6375,150.66,150.64,16.9726]
[1727293127660,6.6371,150.67,150.64,16.9726]
[1727293128490,26.6366,150.68,150.64,16.9726]
[1727293128793,23.50447143,150.71,150.64,16.9726]
[1727293128967,6.6364,150.69,150.64,16.9726]
[1727293135394,1.50769702,150.68,150.64,16.9726]
[1727293137097,6.6364,150.69,150.64,16.9726]
[1727293138391,26.6357,150.7,150.64,16.9726]
[1727293138589,20.0,150.7,150.65,13.56990659]
[1727293138983,20.0,150.7,150.65,14.89734621]
[1727293139299,6.6354,150.71,150.65,14.89734621]
[1727293140305,1.50769702,150.7,150.64,16.9726]
[1727293140601,23.776884,150.69,150.64,16.9726]
[1727293140830,1.50769702,150.68,150.64,16.9726]
[1727293141105,1.50769702,150.68,150.64,16.5742]
[1727293141106,6.6379,150.65,150.64,16.5742]
[1727293141705,6.6379,150.65,150.59,6.6762286]
[1727293141706,6.6384,150.64,150.6,16.1281]
[1727293141910,1.50769702,150.63,150.6,16.1281]
[1727293142079,8.14659702,150.63,150.6,16.1281]
[1727293142807,6.6389,150.63,150.6,16.1281]
[1727293142993,20.0,150.66,150.6,16.1281]
[1727293143997,26.6378,150.66,150.6,16.1281]
[1727293144187,6.6379,150.65,150.6,16.1281]
[1727293145506,26.6375,150.66,150.6,16.1281]
[1727293145975,1.50769702,150.65,150.6,16.1281]
[1727293146175,8.14559702,150.65,150.6,16.1281]
[1727293146803,6.6386,150.64,150.6,16.1281]
[1727293146983,1.50769702,150.63,150.6,16.1281]
[1727293147384,8.14649702,150.63,150.6,16.1281]
[1727293147898,1.50769702,150.62,150.6,16.1281]
[1727293148082,6.6384,150.64,150.6,16.1281]
[1727293148479,20.0,150.66,150.6,16.1281]
[1727293148690,6.6379,150.65,150.6,16.1281]
[1727293149706,1.50769702,150.64,150.6,16.1281]
[1727293150601,8.14629702,150.64,150.6,16.1281]
[1727293151613,6.6386,150.64,150.6,16.1281]
[1727293151996,0.97595218,150.63,150.6,16.1281]
[1727293152195,7.61475218,150.63,150.6,16.1281]
[1727293152398,6.6396,150.61,150.59,0.2451286]
[1727293152604,0.97595218,150.6,150.59,0.2451286]
[1727293152896,36.5941,150.66,150.59,0.2451286]
[1727293153099,6.6393,150.62,150.59,0.2451286]
[1727293155707,0.97595218,150.61,150.59,0.2451286]
[1727293156311,6.6397,150.61,150.59,0.2451286]
[1727293156621,0.97595218,150.6,150.59,0.2451286]
[1727293157492,6.6393,150.62,150.59,0.2451286]
[1727293159412,0.97595218,150.65,150.59,0.2451286]
[1727293159413,6.6396,150.61,150.59,0.2451286]
[1727293160014,6.6396,150.61,150.59,0.6435286]
[1727293160892,6.6393,150.62,150.59,0.6435286]
[1727293162495,0.97595218,150.61,150.59,0.6435286]
[1727293162820,6.6393,150.62,150.59,0.6435286]
[1727293163300,6.6389,150.63,150.59,0.6435286]
[1727293164019,20.0,150.63,150.59,0.6435286]
[1727293164501,20.0,150.64,150.59,0.6435286]
[1727293164703,26.6386,150.64,150.59,0.6435286]
[1727293166126,20.0,150.64,150.59,0.6435286]
[1727293166503,26.6383,150.64,150.59,0.6435286]
[1727293166706,0.97595218,150.63,150.59,0.6435286]
[1727293167231,9.3892,150.72,150.61,6.0201]
[1727293167232,23.0908,150.72,150.61,6.0201]
[1727293167431,6.637,150.67,150.61,6.0201]
[1727293167724,0.97595218,150.66,150.61,6.0201]
[1727293168311,6.6386,150.64,150.6,16.5908]
[1727293168504,7.61465218,150.63,150.6,16.5908]
[1727293168703,0.97595218,150.62,150.6,16.5908]
[1727293169731,0.97595218,150.61,150.6,16.5908]
[1727293170324,6.6388,150.63,150.6,16.5908]
[1727293172625,0.97595218,150.62,150.6,16.5908]
[1727293173000,6.6388,150.63,150.6,16.5908]
[1727293175028,0.97595218,150.62,150.6,16.5908]
[1727293175411,6.6388,150.63,150.6,16.5908]
[1727293175613,0.97595218,150.62,150.6,16.5908]
[1727293178127,26.91437464,150.65,150.6,16.5908]
[1727293178428,0.97595218,150.64,150.6,16.5908]
[1727293180623,6.6387,150.63,150.6,16.5908]
[1727293180824,0.97595218,150.62,150.6,16.5908]
[1727293181833,0.97595218,150.62,150.6,16.9892]
[1727293182244,6.6387,150.63,150.6,16.9892]
[1727293183332,0.97595218,150.62,150.6,16.9892]
[1727293183915,6.6396,150.61,150.6,0.3984]
[1727293184931,30.416484,150.61,150.6,0.3984]
[1727293189342,50.416484,150.61,150.6,0.3984]
[1727293201721,51.39243618,150.61,150.6,0.3984]
[1727293202220,58.3024371,150.61,150.6,0.3984]
[1727293202419,57.32648492,150.61,150.6,0.3984]
[1727293218154,26.6401,150.6,150.59,0.2451286]
[1727293218325,26.6401,150.6,150.55,0.2451286]
[1727293218326,6.6418,150.56,150.55,0.2451286]
[1727293218525,7.61775218,150.56,150.55,0.2451286]
[1727293219158,13.55438527,150.57,150.55,0.2451286]
[1727293220130,0.97595218,150.56,150.55,0.2451286]
[1727293225558,30.418684,150.56,150.55,0.2451286]
[1727293227443,31.39463618,150.56,150.55,0.2451286]
[1727293228668,30.418684,150.56,150.55,0.2451286]
[1727293229361,6.91288527,150.57,150.55,0.2451286]
[1727293230064,0.97595218,150.56,150.55,0.2451286]
[1727293230240,6.91288527,150.57,150.55,0.2451286]
[1727293230641,26.6404,150.6,150.56,15.0893]
[1727293230906,20.0,150.6,150.56,15.0893]
[1727293231965,0.97595218,150.59,150.55,0.2451286]
[1727293232267,6.6418,150.56,150.55,0.2451286]
[1727293232744,30.418684,150.56,150.55,0.2451286]
[1727293234157,6.6415,150.57,150.55,0.2451286]
[1727293234353,0.97595218,150.56,150.55,0.2451286]
[1727293235563,31.39463618,150.56,150.55,0.2451286]
[1727293235759,30.418684,150.56,150.55,0.2451286]
[1727293235959,6.6418,150.56,150.55,0.2451286]
[1727293236458,7.61775218,150.56,150.55,0.2451286]
[1727293237364,30.418684,150.56,150.55,0.2451286]
[1727293237878,50.418684,150.56,150.55,0.2451286]
[1727293238191,51.39463618,150.56,150.55,0.2451286]
[1727293239500,26.6427,150.54,150.53,0.1070184]
[1727293239796,50.419584,150.54,150.53,0.1070184]
[1727293243692,26.6427,150.54,150.53,0.1070184]
[1727293243893,6.6427,150.54,150.53,0.1070184]
[1727293244594,7.61865218,150.54,150.53,0.1070184]
[1727293244981,31.39553618,150.54,150.53,0.1070184]
[1727293246168,51.39553618,150.54,150.53,0.1070184]
[1727293246801,50.419584,150.54,150.53,0.1070184]
[1727293254310,30.420884,150.51,150.5,0.2451286]
[1727293254885,37.33136066,150.51,150.5,0.2451286]
[1727293256713,57.33136066,150.51,150.5,0.2451286]
[1727293257380,58.30731284,150.51,150.5,0.2451286]
[1727293257783,57.33136066,150.51,150.5,0.2451286]
[1727293263610,57.33136066,150.51,150.46,16.0943286]
[1727293263611,6.6458,150.47,150.46,0.2451286]
[1727293263813,6.6458,150.47,150.44,0.1070184]
[1727293263814,50.423584,150.45,150.44,0.1070184]
[1727293265390,43.776884,150.45,150.44,0.1070184]
[1727293265984,20.0,150.51,150.44,0.1070184]
[1727293266207,20.0,150.49,150.44,0.1070184]
[1727293267083,20.0,150.49,150.45,16.4769]
[1727293269006,0.97595218,150.48,150.45,16.4769]
[1727293269402,20.0,150.49,150.45,16.4769]
[1727293273424,0.97595218,150.48,150.45,16.4769]
[1727293274620,20.0,150.49,150.45,16.4769]
[1727293274815,6.90965873,150.5,150.45,22.8903]
[1727293275016,0.97595218,150.49,150.45,22.8903]
[1727293276109,6.6456,150.48,150.45,22.8903]
[1727293276315,0.97595218,150.47,150.45,22.8903]
[1727293276527,0.97595218,150.47,150.45,16.4769]
[1727293278727,6.6456,150.48,150.45,16.4769]
[1727293279240,0.97595218,150.47,150.45,16.4769]
[1727293283905,6.90965873,150.5,150.45,16.4769]
[1727293284141,0.97595218,150.49,150.45,16.4769]
[1727293284437,30.422584,150.48,150.45,16.4769]
[1727293284607,0.97595218,150.47,150.45,16.4769]
[1727293285827,7.62175218,150.47,150.45,16.4769]
[1727293286222,0.97595218,150.47,150.45,16.4769]
[1727293286632,30.421984,150.49,150.45,16.4769]
[1727293286809,6.90965873,150.5,150.45,16.4769]
[1727293286810,13.55445873,150.5,150.45,16.4769]
[1727293287132,0.97595218,150.49,150.45,16.4769]
[1727293288412,6.90965873,150.5,150.45,16.4769]
[1727293288733,6.90965873,150.5,150.46,7.71473723]
[1727293289042,6.643,150.54,150.46,21.28464382]
[1727293289333,13.54984849,150.54,150.47,15.9685]
[1727293289536,13.54984849,150.54,150.47,17.29747879]
[1727293289537,6.90684849,150.54,150.47,17.29747879]
[1727293290015,20.0,150.53,150.47,17.29747879]
[1727293290334,0.97595218,150.53,150.47,15.9685]
[1727293290968,7.61915218,150.53,150.47,15.9685]
[1727293291406,6.6438,150.52,150.47,15.9685]
[1727293291604,6.6441,150.51,150.47,15.9685]
[1727293299729,13.55066888,150.52,150.47,15.9685]
[1727293300236,6.90706888,150.52,150.47,15.9685]
[1727293300415,0.97595218,150.51,150.47,15.9685]
[1727293301012,6.6451,150.49,150.47,15.9685]
[1727293301224,0.97595218,150.48,150.47,15.9685]
[1727293301922,6.6446,150.5,150.47,15.9685]
[1727293303319,26.6442,150.51,150.47,15.9685]
[1727293304733,0.97595218,150.5,150.47,15.9685]
[1727293304939,6.6442,150.51,150.47,15.9685]
[1727293306049,6.90706888,150.52,150.47,15.9685]
[1727293306245,6.90706888,150.52,150.48,6.6]
[1727293306535,0.97595218,150.51,150.48,6.6]
[1727293306742,7.62025218,150.51,150.47,15.9685]
[1727293312545,6.6445,150.5,150.47,15.9685]
[1727293312732,0.97595218,150.49,150.47,15.9685]
[1727293314342,6.6442,150.51,150.47,15.9685]
[1727293314545,73.1452,150.58,150.5,29.87080659]
[1727293314546,20.90429635,150.57,150.5,29.87080659]
[1727293314747,0.2451286,150.57,150.5,29.87080659]
[1727293316221,20.2451286,150.57,150.5,29.87080659]
[1727293317729,0.97595218,150.56,150.5,29.87080659]
[1727293317935,7.61815218,150.56,150.5,16.3009]
[1727293318948,6.8866286,150.57,150.5,31.19955589]
[1727293319348,0.2451286,150.57,150.52,13.56990659]
[1727293319645,0.2451286,150.57,150.55,22.1465]
[1727293321954,0.2451286,150.57,150.55,15.9896]
[1727293322145,6.8866286,150.57,150.55,15.9896]
[1727293322344,0.97595218,150.56,150.55,15.9896]
[1727293323626,0.2451286,150.57,150.55,15.9896]
[1727293324327,1.22108078,150.57,150.55,15.9896]
[1727293326041,0.97595218,150.56,150.55,15.9896]
[1727293327269,0.2451286,150.57,150.51,22.3547]
[1727293327559,6.6427,150.55,150.51,22.3547]
[1727293328245,30.418784,150.56,150.51,22.3547]
[1727293328563,6.6419,150.56,150.51,22.3547]
[1727293329144,0.97595218,150.55,150.51,22.3547]
[1727293330175,7.61835218,150.55,150.51,22.3547]
[1727293330457,0.97595218,150.54,150.51,22.3547]